[Event "Rapid Tournament (RAP)"]
[Site "Biel, Switzerland"]
[Date "2026.07.12"]
[Round "9.31"]
[White "Egli, Urs"]
[Black "Alexakis, Dimitrios"]
[Result "1/2-1/2"]
[TimeControl "15 + 5"]
[WhiteTitle "-"]
[BlackTitle "-"]
[WhiteFideId "1306685"]
[BlackFideId "4200527"]
[WhiteElo "1964"]
[BlackElo "1954"]

1. g3 {[%clk 00:15:05]} {[%emt 00:13:08]} c5 {[%clk 00:15:05]} {[%emt
00:00:07]} 2. Bg2 {[%clk 00:15:05]} Nc6 {[%clk 00:15:05]} {[%emt 00:00:03]} 3.
e4 {[%clk 00:15:05]} {[%emt 00:00:05]} g6 {[%clk 00:15:05]} {[%emt 00:00:14]} 4.
d3 {[%clk 00:15:05]} {[%emt 00:00:10]} Bg7 {[%clk 00:15:05]} {[%emt 00:00:02]}
5. Nf3 {[%clk 00:15:05]} {[%emt 00:00:08]} d6 {[%clk 00:15:05]} {[%emt
00:00:05]} 6. O-O {[%clk 00:15:05]} {[%emt 00:00:03]} Nf6 {[%clk 00:15:05]}
{[%emt 00:00:14]} 7. Re1 {[%clk 00:15:05]} {[%emt 00:00:04]} O-O {[%clk
00:15:05]} {[%emt 00:00:08]} 8. Nbd2 {[%clk 00:15:05]} {[%emt 00:00:08]} a6
{[%clk 00:14:47]} {[%emt 00:00:37]} 9. a4 {[%clk 00:15:08]} {[%emt 00:00:02]}
Rb8 {[%clk 00:14:48]} {[%emt 00:00:04]} 10. e5 {[%clk 00:14:45]} {[%emt
00:00:28]} dxe5 {[%clk 00:14:44]} {[%emt 00:00:10]} 11. Nxe5 {[%clk 00:14:49]}
{[%emt 00:00:01]} Nxe5 {[%clk 00:14:47]} {[%emt 00:00:02]} 12. Rxe5 {[%clk
00:14:52]} Ng4 {[%clk 00:14:48]} {[%emt 00:00:04]} 13. Re2 {[%clk 00:14:26]}
{[%emt 00:00:31]} f5 {[%clk 00:13:32]} {[%emt 00:01:21]} 14. h3 {[%clk
00:13:34]} {[%emt 00:00:58]} Ne5 {[%clk 00:13:31]} {[%emt 00:00:05]} 15. Nf3
{[%clk 00:13:04]} {[%emt 00:00:35]} Nxf3+ {[%clk 00:13:28]} {[%emt 00:00:08]}
16. Bxf3 {[%clk 00:13:08]} {[%emt 00:00:02]} e5 {[%clk 00:13:26]} {[%emt
00:00:06]} 17. Be3 {[%clk 00:12:32]} {[%emt 00:00:40]} Qd6 {[%clk 00:12:55]}
{[%emt 00:00:36]} 18. Qf1 {[%clk 00:10:48]} {[%emt 00:01:51]} Be6 {[%clk
00:11:24]} {[%emt 00:01:36]} 19. Qg2 {[%clk 00:10:42]} {[%emt 00:00:10]} b6
{[%clk 00:11:10]} {[%emt 00:00:19]} 20. a5 {[%clk 00:10:00]} {[%emt 00:00:47]}
b5 {[%clk 00:11:03]} {[%emt 00:00:12]} 21. Bd2 {[%clk 00:09:05]} {[%emt
00:01:00]} Rbe8 {[%clk 00:10:53]} {[%emt 00:00:16]} 22. Rae1 {[%clk 00:08:51]}
{[%emt 00:00:18]} b4 {[%clk 00:10:40]} {[%emt 00:00:18]} 23. b3 {[%clk
00:08:35]} {[%emt 00:00:23]} h6 {[%clk 00:09:36]} {[%emt 00:01:07]} 24. g4
{[%clk 00:07:47]} {[%emt 00:00:54]} Kh7 {[%clk 00:09:12]} {[%emt 00:00:28]} 25.
Bc6 {[%clk 00:06:46]} {[%emt 00:01:06]} Rc8 {[%clk 00:08:49]} {[%emt 00:00:28]}
26. Bb7 {[%clk 00:06:39]} {[%emt 00:00:12]} Rcd8 {[%clk 00:08:32]} {[%emt
00:00:22]} 27. Bf4 {[%clk 00:06:23]} {[%emt 00:00:21]} fxg4 {[%clk 00:07:19]}
{[%emt 00:01:18]} 28. Bxe5 {[%clk 00:06:26]} {[%emt 00:00:02]} Bxe5 {[%clk
00:06:44]} {[%emt 00:00:40]} 29. Rxe5 {[%clk 00:06:30]} {[%emt 00:00:01]} gxh3
{[%clk 00:06:32]} {[%emt 00:00:17]} 30. Qe4 {[%clk 00:04:23]} {[%emt 00:02:12]}
Bf5 {[%clk 00:05:44]} {[%emt 00:00:53]} 31. Re7+ {[%clk 00:04:19]} {[%emt
00:00:10]} Kh8 {[%clk 00:05:46]} {[%emt 00:00:02]} 32. Qe5+ {[%clk 00:03:22]}
{[%emt 00:01:02]} Qxe5 {[%clk 00:05:46]} {[%emt 00:00:05]} 33. R1xe5 {[%clk
00:03:26]} {[%emt 00:00:02]} c4 {[%clk 00:04:16]} {[%emt 00:01:34]} 34. bxc4
{[%clk 00:03:21]} {[%emt 00:00:11]} b3 {[%clk 00:04:19]} {[%emt 00:00:01]} 35.
cxb3 {[%clk 00:03:19]} {[%emt 00:00:08]} Rxd3 {[%clk 00:04:21]} {[%emt
00:00:02]} 36. Bxa6 {[%clk 00:02:47]} {[%emt 00:00:38]} Rxb3 {[%clk 00:04:22]}
{[%emt 00:00:04]} 37. Bb5 {[%clk 00:02:24]} {[%emt 00:00:27]} Bd3 {[%clk
00:04:02]} {[%emt 00:00:25]} 38. Re8 {[%clk 00:01:46]} {[%emt 00:00:44]} Rxe8
{[%clk 00:04:05]} {[%emt 00:00:02]} 39. Rxe8+ {[%clk 00:01:51]} Kg7 {[%clk
00:04:08]} {[%emt 00:00:01]} 40. a6 {[%clk 00:01:48]} {[%emt 00:00:08]} Ra3
{[%clk 00:04:05]} {[%emt 00:00:07]} 41. Re7+ {[%clk 00:01:49]} {[%emt
00:00:04]} Kf6 {[%clk 00:04:09]} {[%emt 00:00:01]} 42. Rc7 {[%clk 00:01:23]}
{[%emt 00:00:32]} Be4 {[%clk 00:03:55]} {[%emt 00:00:18]} 43. Bc6 {[%clk
00:01:06]} {[%emt 00:00:22]} Bxc6 {[%clk 00:03:08]} {[%emt 00:00:53]} 44. Rxc6+
{[%clk 00:01:10]} Kf5 {[%clk 00:03:12]} 45. c5 {[%clk 00:01:06]} {[%emt
00:00:09]} g5 {[%clk 00:03:13]} {[%emt 00:00:03]} 46. Rxh6 {[%clk 00:01:05]}
{[%emt 00:00:07]} g4 {[%clk 00:02:51]} {[%emt 00:00:26]} 47. Kh2 {[%clk
00:00:47]} {[%emt 00:00:23]} Ra2 {[%clk 00:02:10]} {[%emt 00:00:47]} 48. Kg3
{[%clk 00:00:51]} Ra3+ {[%clk 00:02:04]} {[%emt 00:00:10]} 49. Kh2 {[%clk
00:00:55]} Ra2 {[%clk 00:02:08]} {[%emt 00:00:02]} 50. Kg3 {[%clk 00:01:00]}
Ra3+ {[%clk 00:02:12]} {[%emt 00:00:01]} 1/2-1/2

[Event "Rapid Tournament (RAP)"]
[Site "Biel, Switzerland"]
[Date "2026.07.12"]
[Round "9.32"]
[White "Pinson, Clement"]
[Black "Ranieri, Pierpaolo"]
[Result "1-0"]
[TimeControl "15 + 5"]
[WhiteTitle "-"]
[BlackTitle "-"]
[WhiteFideId "26098660"]
[BlackFideId "893986"]
[WhiteElo "1924"]
[BlackElo "1891"]

1. e4 {[%clk 00:15:09]} {[%emt 00:00:03]} d6 {[%clk 00:15:09]} 2. d4 {[%clk
00:15:12]} Nf6 {[%clk 00:15:12]} {[%emt 00:00:02]} 3. Nc3 {[%clk 00:15:16]}
{[%emt 00:00:01]} g6 {[%clk 00:15:16]} {[%emt 00:00:03]} 4. Be3 {[%clk
00:15:18]} {[%emt 00:00:01]} c6 {[%clk 00:15:19]} {[%emt 00:00:02]} 5. Qd2
{[%clk 00:15:20]} {[%emt 00:00:05]} b5 {[%clk 00:15:23]} 6. f3 {[%clk
00:15:20]} {[%emt 00:00:04]} Nbd7 {[%clk 00:15:26]} {[%emt 00:00:02]} 7. Bd3
{[%clk 00:15:04]} {[%emt 00:00:21]} Bb7 {[%clk 00:15:22]} {[%emt 00:00:09]} 8.
a4 {[%clk 00:14:37]} {[%emt 00:00:32]} b4 {[%clk 00:15:19]} {[%emt 00:00:08]} 9.
Nd1 {[%clk 00:14:33]} {[%emt 00:00:09]} a5 {[%clk 00:15:22]} {[%emt 00:00:02]}
10. Nf2 {[%clk 00:14:25]} {[%emt 00:00:13]} Nb6 {[%clk 00:14:26]} {[%emt
00:01:02]} 11. Ne2 {[%clk 00:14:17]} {[%emt 00:00:12]} Nfd7 {[%clk 00:14:17]}
{[%emt 00:00:15]} 12. c4 {[%clk 00:14:04]} {[%emt 00:00:17]} c5 {[%clk
00:13:43]} {[%emt 00:00:39]} 13. O-O {[%clk 00:13:00]} {[%emt 00:01:08]} Bg7
{[%clk 00:13:39]} {[%emt 00:00:10]} 14. Bh6 {[%clk 00:12:43]} {[%emt 00:00:22]}
O-O {[%clk 00:13:07]} {[%emt 00:00:38]} 15. Ng4 {[%clk 00:12:32]} {[%emt
00:00:15]} cxd4 {[%clk 00:11:31]} {[%emt 00:01:42]} 16. Bxg7 {[%clk 00:12:31]}
{[%emt 00:00:06]} Kxg7 {[%clk 00:11:34]} {[%emt 00:00:02]} 17. Qh6+ {[%clk
00:12:01]} {[%emt 00:00:34]} Kg8 {[%clk 00:11:35]} {[%emt 00:00:04]} 18. f4
{[%clk 00:11:51]} {[%emt 00:00:16]} Nf6 {[%clk 00:10:52]} {[%emt 00:00:48]} 19.
Nxf6+ {[%clk 00:11:41]} {[%emt 00:00:15]} exf6 {[%clk 00:10:54]} {[%emt
00:00:02]} 20. Rf3 {[%clk 00:11:32]} {[%emt 00:00:14]} Re8 {[%clk 00:10:05]}
{[%emt 00:00:54]} 21. Rh3 {[%clk 00:11:29]} {[%emt 00:00:09]} Bxe4 {[%clk
00:09:13]} {[%emt 00:00:57]} 22. Qxh7+ {[%clk 00:11:32]} {[%emt 00:00:02]} Kf8
{[%clk 00:09:16]} {[%emt 00:00:02]} 23. Qh6+ {[%clk 00:11:35]} Ke7 {[%clk
00:09:15]} {[%emt 00:00:06]} 24. Bxe4 {[%clk 00:11:34]} {[%emt 00:00:06]} d5
{[%clk 00:09:14]} {[%emt 00:00:06]} 25. cxd5 {[%clk 00:10:43]} {[%emt
00:00:57]} Nxd5 {[%clk 00:09:08]} {[%emt 00:00:11]} 26. Re1 {[%clk 00:10:06]}
{[%emt 00:00:42]} Kd6 {[%clk 00:08:47]} {[%emt 00:00:26]} 27. Qh4 {[%clk
00:09:41]} {[%emt 00:00:29]} Rxe4 {[%clk 00:08:38]} {[%emt 00:00:15]} 28. Rd3
{[%clk 00:09:03]} {[%emt 00:00:43]} Qe7 {[%clk 00:07:56]} {[%emt 00:00:47]} 29.
Qf2 {[%clk 00:08:03]} {[%emt 00:01:04]} Re8 {[%clk 00:07:01]} {[%emt 00:01:01]}
30. Rd2 {[%clk 00:07:24]} {[%emt 00:00:44]} b3 {[%clk 00:04:45]} {[%emt
00:02:20]} 31. h3 {[%clk 00:06:53]} {[%emt 00:00:37]} Qe6 {[%clk 00:02:45]}
{[%emt 00:02:05]} 32. Kh2 {[%clk 00:06:19]} {[%emt 00:00:39]} d3 {[%clk
00:02:09]} {[%emt 00:00:41]} 33. Nd4 {[%clk 00:06:08]} {[%emt 00:00:15]} Qe7
{[%clk 00:00:57]} {[%emt 00:01:17]} 34. Nb5+ {[%clk 00:06:07]} {[%emt
00:00:07]} Kd7 {[%clk 00:00:26]} {[%emt 00:00:36]} 35. Rc1 {[%clk 00:04:51]}
{[%emt 00:01:21]} Rc8 {[%clk 00:00:13]} {[%emt 00:00:18]} 36. Qa7+ {[%clk
00:04:12]} {[%emt 00:00:44]} Kd8 {[%clk 00:00:07]} {[%emt 00:00:10]} 37. Rxc8+
{[%clk 00:04:14]} {[%emt 00:00:04]} Kxc8 {[%clk 00:00:10]} {[%emt 00:00:03]} 38.
Qa8+ {[%clk 00:04:17]} {[%emt 00:00:01]} Kd7 {[%clk 00:00:07]} {[%emt
00:00:08]} 39. Qxd5+ {[%clk 00:04:20]} {[%emt 00:00:02]} Ke8 {[%clk 00:00:10]}
{[%emt 00:00:02]} 40. Qxe4 {[%clk 00:03:27]} {[%emt 00:00:57]} 1-0

[Event "Rapid Tournament (RAP)"]
[Site "Biel, Switzerland"]
[Date "2026.07.12"]
[Round "9.33"]
[White "Piazza, Carlo"]
[Black "Duric, Ivan"]
[Result "1-0"]
[TimeControl "15 + 5"]
[WhiteTitle "-"]
[BlackTitle "-"]
[WhiteFideId "809683"]
[BlackFideId "1358138"]
[WhiteElo "2076"]
[BlackElo "1832"]

1. e4 {[%clk 00:15:09]} c5 {[%clk 00:15:08]} {[%emt 00:00:04]} 2. Nf3 {[%clk
00:15:13]} d6 {[%clk 00:15:12]} {[%emt 00:00:02]} 3. d4 {[%clk 00:15:16]}
{[%emt 00:00:02]} cxd4 {[%clk 00:15:15]} {[%emt 00:00:04]} 4. Nxd4 {[%clk
00:15:19]} Nf6 {[%clk 00:15:18]} {[%emt 00:00:02]} 5. Nc3 {[%clk 00:15:23]}
{[%emt 00:00:02]} a6 {[%clk 00:15:22]} {[%emt 00:00:01]} 6. h3 {[%clk
00:15:25]} {[%emt 00:00:03]} e5 {[%clk 00:14:17]} {[%emt 00:01:11]} 7. Nb3
{[%clk 00:15:26]} {[%emt 00:00:03]} Be6 {[%clk 00:14:13]} {[%emt 00:00:09]} 8.
f4 {[%clk 00:15:27]} {[%emt 00:00:03]} exf4 {[%clk 00:13:35]} {[%emt 00:00:44]}
9. Bxf4 {[%clk 00:15:29]} {[%emt 00:00:02]} Nc6 {[%clk 00:12:56]} {[%emt
00:00:45]} 10. Qe2 {[%clk 00:15:30]} {[%emt 00:00:04]} Be7 {[%clk 00:12:38]}
{[%emt 00:00:23]} 11. O-O-O {[%clk 00:15:30]} {[%emt 00:00:05]} Bxb3 {[%clk
00:10:31]} {[%emt 00:02:12]} 12. axb3 {[%clk 00:15:25]} {[%emt 00:00:08]} Qc7
{[%clk 00:10:32]} {[%emt 00:00:05]} 13. g4 {[%clk 00:15:10]} {[%emt 00:00:21]}
h6 {[%clk 00:08:59]} {[%emt 00:01:39]} 14. Bg2 {[%clk 00:14:07]} {[%emt
00:01:06]} Ne5 {[%clk 00:07:30]} {[%emt 00:01:35]} 15. Bf3 {[%clk 00:12:10]}
{[%emt 00:02:02]} Rc8 {[%clk 00:07:09]} {[%emt 00:00:26]} 16. Rd2 {[%clk
00:11:43]} {[%emt 00:00:32]} Nfd7 {[%clk 00:06:16]} {[%emt 00:00:59]} 17. Nd5
{[%clk 00:11:16]} {[%emt 00:00:31]} Qd8 {[%clk 00:06:10]} {[%emt 00:00:11]} 18.
Nxe7 {[%clk 00:10:59]} {[%emt 00:00:21]} Qxe7 {[%clk 00:06:10]} {[%emt
00:00:06]} 19. Rhd1 {[%clk 00:10:56]} {[%emt 00:00:09]} Rc6 {[%clk 00:06:02]}
{[%emt 00:00:12]} 20. Kb1 {[%clk 00:10:12]} {[%emt 00:00:49]} O-O {[%clk
00:05:56]} {[%emt 00:00:11]} 21. Qe3 {[%clk 00:09:30]} {[%emt 00:00:46]} g5
{[%clk 00:04:54]} {[%emt 00:01:08]} 22. Bg3 {[%clk 00:09:13]} {[%emt 00:00:21]}
Re8 {[%clk 00:02:55]} {[%emt 00:02:04]} 23. Be2 {[%clk 00:09:08]} {[%emt
00:00:10]} Qf6 {[%clk 00:01:49]} {[%emt 00:01:13]} 24. Rf1 {[%clk 00:08:29]}
{[%emt 00:00:43]} Qg6 {[%clk 00:01:45]} {[%emt 00:00:10]} 25. Rf5 {[%clk
00:08:29]} {[%emt 00:00:04]} Nc5 {[%clk 00:01:30]} {[%emt 00:00:20]} 26. Rd5
{[%clk 00:04:25]} {[%emt 00:04:08]} Ne6 {[%clk 00:01:06]} {[%emt 00:00:30]} 27.
Bxe5 {[%clk 00:03:52]} {[%emt 00:00:37]} dxe5 {[%clk 00:01:07]} {[%emt
00:00:04]} 28. Rdxe5 {[%clk 00:03:20]} {[%emt 00:00:38]} Rec8 {[%clk 00:00:56]}
{[%emt 00:00:16]} 29. c3 {[%clk 00:02:38]} {[%emt 00:00:47]} Nf4 {[%clk
00:00:33]} {[%emt 00:00:28]} 30. Bc4 {[%clk 00:02:32]} {[%emt 00:00:11]} R6c7
{[%clk 00:00:34]} {[%emt 00:00:03]} 31. h4 {[%clk 00:01:16]} {[%emt 00:01:22]}
Ne6 {[%clk 00:00:10]} {[%emt 00:00:29]} 32. hxg5 {[%clk 00:01:03]} {[%emt
00:00:17]} Kh7 {[%clk 00:00:06]} {[%emt 00:00:10]} 33. gxh6 {[%clk 00:00:55]}
{[%emt 00:00:14]} b5 {[%clk 00:00:08]} {[%emt 00:00:02]} 34. Bd5 {[%clk
00:00:44]} {[%emt 00:00:16]} Rd7 {[%clk 00:00:06]} {[%emt 00:00:07]} 35. g5
{[%clk 00:00:45]} {[%emt 00:00:04]} Nc7 {[%clk 00:00:06]} {[%emt 00:00:05]} 36.
Rf6 {[%clk 00:00:45]} {[%emt 00:00:04]} Rxd5 {[%clk 00:00:00]} {[%emt
00:00:07]} 37. Rxg6 {[%emt 00:00:09]} Rxe5 38. Rg7+ {[%emt 00:00:07]} Kh8
{[%emt 00:00:05]} 39. Rxf7 {[%emt 00:00:01]} 1-0

[Event "Rapid Tournament (RAP)"]
[Site "Biel, Switzerland"]
[Date "2026.07.12"]
[Round "9.34"]
[White "De Gregorio, Alexis"]
[Black "Di Meo, Quentin"]
[Result "1/2-1/2"]
[TimeControl "15 + 5"]
[WhiteTitle "-"]
[BlackTitle "-"]
[WhiteFideId "1310054"]
[BlackFideId "1338498"]
[WhiteElo "2030"]
[BlackElo "1828"]

1. e4 {[%clk 00:15:06]} {[%emt 00:00:03]} c6 {[%clk 00:15:08]} {[%emt
00:00:02]} 2. Nf3 {[%clk 00:15:08]} {[%emt 00:00:05]} d5 {[%clk 00:15:11]} 3.
exd5 {[%clk 00:15:08]} {[%emt 00:00:07]} cxd5 {[%clk 00:15:14]} 4. d4 {[%clk
00:15:08]} {[%emt 00:00:04]} Nf6 {[%clk 00:15:13]} {[%emt 00:00:06]} 5. c4
{[%clk 00:14:43]} {[%emt 00:00:30]} Nc6 {[%clk 00:14:33]} {[%emt 00:00:46]} 6.
Nc3 {[%clk 00:14:19]} {[%emt 00:00:29]} Bg4 {[%clk 00:14:18]} {[%emt 00:00:19]}
7. cxd5 {[%clk 00:11:43]} {[%emt 00:02:42]} Nxd5 {[%clk 00:13:25]} {[%emt
00:00:57]} 8. Bb5 {[%clk 00:10:06]} {[%emt 00:01:43]} Bxf3 {[%clk 00:12:56]}
{[%emt 00:00:34]} 9. Qxf3 {[%clk 00:09:51]} {[%emt 00:00:20]} e6 {[%clk
00:12:31]} {[%emt 00:00:30]} 10. O-O {[%clk 00:09:38]} {[%emt 00:00:18]} Rc8
{[%clk 00:11:38]} {[%emt 00:00:58]} 11. Re1 {[%clk 00:08:54]} {[%emt 00:00:48]}
Be7 {[%clk 00:11:31]} {[%emt 00:00:12]} 12. Nxd5 {[%clk 00:07:27]} {[%emt
00:01:33]} Qxd5 {[%clk 00:11:14]} {[%emt 00:00:20]} 13. Qxd5 {[%clk 00:07:13]}
{[%emt 00:00:20]} exd5 {[%clk 00:11:17]} {[%emt 00:00:03]} 14. Bf4 {[%clk
00:06:38]} {[%emt 00:00:40]} Kf8 {[%clk 00:10:28]} {[%emt 00:00:53]} 15. Rac1
{[%clk 00:06:16]} {[%emt 00:00:27]} f6 {[%clk 00:10:00]} {[%emt 00:00:33]} 16.
Rc2 {[%clk 00:05:25]} {[%emt 00:00:57]} Kf7 {[%clk 00:09:10]} {[%emt 00:00:55]}
17. Rec1 {[%clk 00:05:16]} {[%emt 00:00:13]} Rhe8 {[%clk 00:08:50]} {[%emt
00:00:25]} 18. Kf1 {[%clk 00:04:51]} {[%emt 00:00:30]} Bb4 {[%clk 00:08:35]}
{[%emt 00:00:21]} 19. a3 {[%clk 00:04:26]} {[%emt 00:00:31]} Ba5 {[%clk
00:08:00]} {[%emt 00:00:39]} 20. b4 {[%clk 00:04:27]} {[%emt 00:00:04]} Bb6
{[%clk 00:07:48]} {[%emt 00:00:17]} 21. Be3 {[%clk 00:04:24]} {[%emt 00:00:08]}
Re6 {[%clk 00:07:16]} {[%emt 00:00:37]} 22. Be2 {[%clk 00:04:02]} {[%emt
00:00:27]} Rce8 {[%clk 00:06:35]} {[%emt 00:00:46]} 23. Bf3 {[%clk 00:03:49]}
{[%emt 00:00:17]} Ne7 {[%clk 00:05:50]} {[%emt 00:00:51]} 24. g4 {[%clk
00:02:11]} {[%emt 00:01:42]} Rd6 {[%clk 00:05:29]} {[%emt 00:00:26]} 25. Bf4
{[%clk 00:01:54]} {[%emt 00:00:22]} Rd7 {[%clk 00:05:25]} {[%emt 00:00:09]} 26.
Be3 {[%clk 00:01:47]} {[%emt 00:00:12]} Nc6 {[%clk 00:05:18]} {[%emt 00:00:12]}
27. Rd1 {[%clk 00:01:14]} {[%emt 00:00:38]} g6 {[%clk 00:05:02]} {[%emt
00:00:21]} 28. b5 {[%clk 00:01:10]} {[%emt 00:00:10]} Na5 {[%clk 00:04:48]}
{[%emt 00:00:19]} 29. Rdc1 {[%clk 00:00:45]} {[%emt 00:00:29]} Nc4 {[%clk
00:04:47]} {[%emt 00:00:07]} 30. Rc3 {[%clk 00:00:29]} {[%emt 00:00:20]} Nxe3+
{[%clk 00:04:39]} {[%emt 00:00:13]} 31. fxe3 {[%clk 00:00:30]} {[%emt
00:00:04]} Ke6 {[%clk 00:04:04]} {[%emt 00:00:41]} 32. Kf2 {[%clk 00:00:34]}
{[%emt 00:00:01]} Ree7 {[%clk 00:03:58]} {[%emt 00:00:11]} 33. h3 {[%clk
00:00:27]} {[%emt 00:00:12]} Rc7 {[%clk 00:03:19]} {[%emt 00:00:44]} 34. Rxc7
{[%clk 00:00:29]} {[%emt 00:00:02]} Rxc7 {[%clk 00:03:22]} {[%emt 00:00:02]} 35.
Rxc7 {[%clk 00:00:32]} {[%emt 00:00:02]} Bxc7 {[%clk 00:03:26]} {[%emt
00:00:02]} 36. Ke2 {[%clk 00:00:31]} {[%emt 00:00:06]} 1/2-1/2

[Event "Rapid Tournament (RAP)"]
[Site "Biel, Switzerland"]
[Date "2026.07.12"]
[Round "9.35"]
[White "Labrovic, Jakov"]
[Black "Yang, Sung-Jui"]
[Result "1-0"]
[TimeControl "15 + 5"]
[WhiteTitle "-"]
[BlackTitle "-"]
[WhiteFideId "14549786"]
[BlackFideId "16301048"]
[WhiteElo "2005"]
[BlackElo "1825"]

1. e4 {[%clk 00:15:10]} e6 {[%clk 00:15:09]} {[%emt 00:00:04]} 2. d4 {[%clk
00:15:11]} d5 {[%clk 00:15:14]} {[%emt 00:00:02]} 3. e5 {[%clk 00:15:15]} c5
{[%clk 00:15:18]} {[%emt 00:00:02]} 4. c3 {[%clk 00:15:18]} {[%emt 00:00:03]}
Qb6 {[%clk 00:15:22]} 5. Nf3 {[%clk 00:15:20]} {[%emt 00:00:02]} Nc6 {[%clk
00:15:26]} {[%emt 00:00:01]} 6. Bd3 {[%clk 00:15:23]} {[%emt 00:00:01]} cxd4
{[%clk 00:15:30]} {[%emt 00:00:03]} 7. O-O {[%clk 00:15:25]} {[%emt 00:00:02]}
Bd7 {[%clk 00:15:27]} {[%emt 00:00:08]} 8. Re1 {[%clk 00:15:27]} {[%emt
00:00:03]} Nge7 {[%clk 00:15:23]} {[%emt 00:00:09]} 9. h4 {[%clk 00:15:30]}
{[%emt 00:00:02]} h6 {[%clk 00:15:26]} {[%emt 00:00:02]} 10. h5 {[%clk
00:15:08]} {[%emt 00:00:27]} Rc8 {[%clk 00:15:12]} {[%emt 00:00:19]} 11. Nbd2
{[%clk 00:13:39]} {[%emt 00:01:34]} dxc3 {[%clk 00:15:16]} {[%emt 00:00:02]} 12.
bxc3 {[%clk 00:13:42]} {[%emt 00:00:02]} Na5 {[%clk 00:15:16]} {[%emt
00:00:05]} 13. Rb1 {[%clk 00:13:33]} {[%emt 00:00:13]} Qc7 {[%clk 00:14:53]}
{[%emt 00:00:28]} 14. c4 {[%clk 00:13:09]} {[%emt 00:00:29]} dxc4 {[%clk
00:14:19]} {[%emt 00:00:39]} 15. Ne4 {[%clk 00:12:34]} {[%emt 00:00:40]} Nd5
{[%clk 00:14:05]} {[%emt 00:00:19]} 16. Bc2 {[%clk 00:12:09]} {[%emt 00:00:29]}
Be7 {[%clk 00:13:19]} {[%emt 00:00:51]} 17. Qd4 {[%clk 00:10:54]} {[%emt
00:01:19]} b5 {[%clk 00:10:53]} {[%emt 00:02:32]} 18. Nd6+ {[%clk 00:10:32]}
{[%emt 00:00:28]} Bxd6 {[%clk 00:10:26]} {[%emt 00:00:33]} 19. exd6 {[%clk
00:10:34]} {[%emt 00:00:02]} Qxd6 {[%clk 00:10:22]} {[%emt 00:00:08]} 20. Qxg7
{[%clk 00:10:35]} {[%emt 00:00:04]} Ke7 {[%clk 00:09:27]} {[%emt 00:01:01]} 21.
Ne5 {[%clk 00:10:07]} {[%emt 00:00:32]} Rhf8 {[%clk 00:06:58]} {[%emt
00:02:35]} 22. Bxh6 {[%clk 00:08:29]} {[%emt 00:01:43]} Nc3 {[%clk 00:06:51]}
{[%emt 00:00:12]} 23. Ra1 {[%clk 00:07:14]} {[%emt 00:01:18]} b4 {[%clk
00:04:17]} {[%emt 00:02:41]} 24. Ng6+ {[%clk 00:06:46]} {[%emt 00:00:32]} Ke8
{[%clk 00:04:20]} {[%emt 00:00:03]} 25. Nxf8 {[%clk 00:06:41]} {[%emt
00:00:09]} Bc6 {[%clk 00:04:05]} {[%emt 00:00:21]} 26. Nxe6 {[%clk 00:06:06]}
{[%emt 00:00:39]} fxe6 {[%clk 00:04:08]} {[%emt 00:00:03]} 27. Bg6+ {[%clk
00:06:09]} {[%emt 00:00:02]} Kd8 {[%clk 00:04:11]} {[%emt 00:00:02]} 28. Bg5+
{[%clk 00:06:11]} {[%emt 00:00:02]} 1-0